bitfinex/quotes_BTCUSD_20240718
["timestamp","ask_amount","ask_price","bid_price","bid_amount"]
[1721277589879,1e-08,64763.0,64762.0,3.84819681]
[1721277590082,1e-08,64763.0,64762.0,3.8621418]
[1721277590480,1e-08,64763.0,64762.0,3.28161596]
[1721277590733,1e-08,64763.0,64762.0,3.3969683]
[1721277590937,1e-08,64763.0,64762.0,3.87617252]
[1721277591141,1e-08,64763.0,64762.0,3.79177252]
[1721277591352,1e-08,64763.0,64762.0,3.3969683]
[1721277592398,1e-08,64763.0,64762.0,3.3829683]
[1721277592612,1e-08,64764.0,64763.0,1.779459]
[1721277592818,1e-08,64764.0,64763.0,2.87984091]
[1721277593042,1e-08,64764.0,64763.0,2.88773236]
[1721277593245,1e-08,64764.0,64763.0,2.88773903]
[1721277593859,1e-08,64764.0,64763.0,2.97213903]
[1721277594077,1e-08,64764.0,64763.0,2.98613903]
[1721277595316,1e-08,64764.0,64763.0,3.06331382]
[1721277595738,1e-08,64764.0,64763.0,2.98613903]
[1721277596472,1e-08,64764.0,64763.0,2.32338315]
[1721277596671,1e-08,64764.0,64763.0,2.98614353]
[1721277597285,1e-08,64764.0,64763.0,2.93614353]
[1721277597495,1e-08,64764.0,64763.0,2.98614353]
[1721277597904,1e-08,64764.0,64763.0,2.93614353]
[1721277598357,1e-08,64764.0,64763.0,2.98614353]
[1721277599753,1e-08,64764.0,64763.0,2.66567765]
[1721277599962,1e-08,64764.0,64763.0,2.98614385]
[1721277600176,1e-08,64764.0,64763.0,3.05264385]
[1721277600354,1e-08,64764.0,64763.0,3.05264224]
[1721277600987,1e-08,64764.0,64763.0,2.73217477]
[1721277601187,0.0764,64772.0,64771.0,1.43951]
[1721277601390,0.0764,64772.0,64771.0,2.46572299]
[1721277601570,0.0764,64772.0,64771.0,2.57360505]
[1721277602389,0.0764,64772.0,64771.0,2.58760155]
[1721277602842,0.0764,64772.0,64771.0,2.60160155]
[1721277605801,0.0764,64772.0,64771.0,2.60159488]
[1721277608645,0.06703,64773.0,64772.0,1.439487]
[1721277608646,0.00083,64773.0,64772.0,1.439487]
[1721277608869,0.00083,64773.0,64772.0,1.87708457]
[1721277609078,0.00083,64773.0,64772.0,2.54765175]
[1721277609285,0.00083,64773.0,64772.0,2.68640368]
[1721277609538,0.00083,64773.0,64772.0,3.0723317]
[1721277609953,0.00083,64773.0,64772.0,3.1003317]
[1721277610185,0.00083,64773.0,64772.0,3.10031124]
[1721277610403,0.00083,64773.0,64772.0,2.96157824]
[1721277611039,0.00083,64773.0,64772.0,3.10031124]
[1721277611857,0.00083,64773.0,64772.0,2.96157824]
[1721277612077,0.00083,64773.0,64772.0,2.8844]
[1721277612285,0.00083,64773.0,64772.0,2.88439877]
[1721277615142,0.00083,64773.0,64772.0,2.56397757]
[1721277615344,0.00083,64773.0,64772.0,2.94680223]
[1721277615545,0.00083,64773.0,64772.0,2.94680243]
[1721277616414,0.1456,64782.0,64781.0,1.130562]
[1721277616618,0.1456,64782.0,64781.0,1.81731037]
[1721277616817,0.1456,64782.0,64781.0,1.82517509]
[1721277617224,0.1456,64782.0,64781.0,1.80663207]
[1721277617430,0.1456,64782.0,64781.0,2.5500484]
[1721277617636,0.1456,64782.0,64781.0,2.47160551]
[1721277617863,0.0828,64782.0,64781.0,2.47160551]
[1721277618072,0.0828,64782.0,64781.0,2.60113305]
[1721277618497,0.0828,64782.0,64781.0,2.58713305]
[1721277618703,0.0828,64782.0,64781.0,1.80894046]
[1721277618915,0.0828,64782.0,64781.0,2.47155897]
[1721277619330,0.0664,64784.0,64783.0,1.439249]
[1721277619540,0.0664,64784.0,64783.0,2.44856164]
[1721277619770,0.0664,64784.0,64783.0,2.51896173]
[1721277619976,0.0664,64784.0,64783.0,2.52682645]
[1721277620184,0.0664,64784.0,64783.0,2.33458703]
[1721277620388,0.0664,64784.0,64783.0,2.52682645]
[1721277620604,0.0664,64784.0,64783.0,2.47151757]
[1721277621413,0.0664,64784.0,64783.0,2.48551757]
[1721277621929,0.0664,64784.0,64783.0,1.82289546]
[1721277622136,0.0664,64784.0,64783.0,2.36257275]
[1721277622324,0.0791,64785.0,64784.0,1.439231]
[1721277622482,0.00083,64787.0,64786.0,0.05]
[1721277622687,0.00083,64787.0,64786.0,0.44913712]
[1721277622879,0.00083,64787.0,64786.0,0.58000184]
[1721277623082,0.00083,64787.0,64786.0,0.53380514]
[1721277623285,0.00083,64787.0,64786.0,1.92299114]
[1721277623514,0.00083,64787.0,64786.0,1.96918784]
[1721277623716,0.00083,64787.0,64786.0,2.04499484]
[1721277623915,0.00083,64787.0,64786.0,1.99879814]
[1721277624112,0.00083,64787.0,64786.0,2.01733902]
[1721277624513,0.00083,64787.0,64786.0,2.01733907]
[1721277625202,0.00083,64787.0,64786.0,2.04499302]
[1721277625408,0.00083,64787.0,64786.0,2.04498857]
[1721277625820,0.00083,64787.0,64786.0,2.01733769]
[1721277625998,0.00083,64787.0,64786.0,2.0589916]
[1721277626442,0.00083,64787.0,64786.0,2.03133769]
[1721277627273,0.00083,64787.0,64786.0,2.07753123]
[1721277627473,0.00083,64787.0,64786.0,2.05899]
[1721277628091,0.00083,64787.0,64786.0,2.04499]
[1721277628272,0.00083,64787.0,64786.0,2.06808463]
[1721277628505,0.00083,64787.0,64786.0,2.41029609]
[1721277628718,0.00083,64787.0,64786.0,2.29615531]
[1721277628882,0.00083,64787.0,64786.0,2.53323795]
[1721277629103,0.00083,64787.0,64786.0,2.29125396]
[1721277629468,0.00083,64788.0,64787.0,1.500663]
[1721277629660,0.00083,64788.0,64787.0,2.7802982]
[1721277629857,0.00083,64788.0,64787.0,2.94829109]
[1721277630441,0.00083,64788.0,64787.0,2.7881171]
[1721277631050,0.00083,64788.0,64787.0,2.9482893]
[1721277631277,0.00083,64792.0,64791.0,1.978722]
[1721277631481,0.00083,64792.0,64791.0,2.79686646]
[1721277631660,0.00083,64792.0,64791.0,2.99890035]
[1721277631789,0.00083,64792.0,64791.0,2.99881806]
[1721277632412,0.00083,64792.0,64791.0,3.01281806]
[1721277632622,0.00083,64792.0,64791.0,2.91298336]
[1721277633087,0.00083,64792.0,64791.0,2.92698336]
[1721277633702,0.00083,64792.0,64791.0,3.02681979]
[1721277634103,0.00083,64792.0,64791.0,3.11916385]
[1721277634300,0.00083,64792.0,64791.0,2.92695749]
[1721277634533,0.00083,64792.0,64791.0,3.11916385]
[1721277634726,0.00083,64792.0,64791.0,2.92695749]
[1721277634924,0.00083,64792.0,64791.0,3.11916385]
[1721277635151,0.00083,64792.0,64791.0,2.79881612]
[1721277635303,0.00083,64792.0,64791.0,2.92695332]
[1721277635512,0.00083,64792.0,64791.0,3.11915912]
[1721277635715,0.00083,64792.0,64791.0,2.92695332]
[1721277635920,0.00083,64792.0,64791.0,3.02681614]
[1721277636180,0.00083,64792.0,64791.0,3.11913667]
[1721277636965,0.00083,64792.0,64791.0,3.11913193]
[1721277637410,0.06363,64792.0,64791.0,3.11912274]
[1721277637899,0.06363,64792.0,64791.0,2.83460717]
[1721277638138,0.06363,64792.0,64791.0,3.02681168]
[1721277638388,0.06363,64792.0,64791.0,3.09604171]
[1721277639105,0.06363,64792.0,64791.0,3.11912274]
[1721277639320,0.06363,64792.0,64791.0,3.02681168]
[1721277639787,0.06363,64792.0,64791.0,3.11912274]
[1721277640313,0.06363,64792.0,64791.0,3.02681168]
[1721277641212,0.06363,64792.0,64791.0,2.71812768]
[1721277643345,0.06363,64792.0,64791.0,2.78735018]
[1721277643472,0.06363,64792.0,64791.0,2.78735589]
[1721277643673,0.13963,64792.0,64791.0,2.78735927]
[1721277644202,0.13963,64792.0,64791.0,1.50071963]
[1721277645182,0.13963,64792.0,64791.0,1.48671963]
[1721277645386,0.13963,64792.0,64791.0,1.47271963]
[1721277645797,0.13963,64792.0,64791.0,1.50071963]
[1721277646182,0.13963,64792.0,64791.0,1.48671963]
[1721277646385,0.13963,64792.0,64791.0,1.52371963]
[1721277646715,0.13963,64792.0,64791.0,1.52373616]
[1721277646919,0.13963,64792.0,64791.0,1.58013616]
[1721277647337,0.13963,64792.0,64791.0,1.59413593]
[1721277650050,0.13963,64792.0,64791.0,1.46598189]
[1721277650254,0.13963,64792.0,64791.0,1.59413616]
[1721277651516,0.13963,64792.0,64791.0,1.64413616]
[1721277651742,0.13963,64792.0,64791.0,1.59413616]
[1721277653198,0.13963,64792.0,64791.0,1.6403229]
[1721277653404,0.13963,64792.0,64791.0,1.51219519]
[1721277653618,0.13963,64792.0,64791.0,1.64034736]
[1721277654242,0.13963,64792.0,64791.0,1.64035805]
[1721277655505,0.13963,64792.0,64791.0,1.59413406]
[1721277656262,0.13963,64792.0,64791.0,1.52373406]
[1721277656839,0.13963,64792.0,64791.0,1.52373823]
[1721277658669,0.13963,64792.0,64791.0,1.56997263]
[1721277660068,0.13963,64792.0,64791.0,1.56998023]
[1721277661217,0.13963,64792.0,64791.0,1.57373823]
[1721277661442,0.13963,64792.0,64791.0,1.61998775]
[1721277661808,0.13963,64792.0,64791.0,1.69038775]
[1721277662439,0.00083,64792.0,64791.0,1.99907175]
[1721277662647,0.00083,64792.0,64791.0,2.48722224]
[1721277662926,0.00083,64792.0,64791.0,2.55129614]
[1721277663313,0.00083,64792.0,64791.0,2.48722303]
[1721277663758,0.00083,64792.0,64791.0,2.55129549]
[1721277665441,0.00083,64792.0,64791.0,2.12221149]
[1721277665442,0.14583,64792.0,64791.0,2.12221149]
[1721277665746,0.14583,64792.0,64791.0,2.15065421]
[1721277665942,0.14583,64792.0,64791.0,2.1506769]
[1721277666401,0.14583,64792.0,64791.0,1.83031083]
[1721277666602,0.14583,64792.0,64791.0,1.97700336]
[1721277666785,0.14583,64792.0,64791.0,2.16923139]
[1721277666999,0.14583,64792.0,64791.0,1.97700336]
[1721277667181,0.14583,64792.0,64791.0,2.16923139]
[1721277667584,0.14583,64792.0,64791.0,1.97700336]
[1721277667832,0.14583,64792.0,64791.0,2.16923139]
[1721277667993,0.14583,64792.0,64791.0,1.97700336]
[1721277668212,0.14583,64792.0,64791.0,2.16923139]
[1721277668873,0.14583,64792.0,64791.0,1.88447724]
[1721277669058,0.14583,64792.0,64791.0,2.07670734]
[1721277669273,0.14583,64792.0,64791.0,0.75521389]
[1721277669485,0.14583,64792.0,64791.0,0.32031389]
[1721277669486,0.21623,64792.0,64791.0,0.32031389]
[1721277669695,0.14583,64792.0,64791.0,0.42031389]
[1721277669901,0.14583,64792.0,64791.0,0.72899789]
[1721277670125,0.14583,64792.0,64791.0,0.70099789]
[1721277670527,0.14583,64792.0,64791.0,0.71499789]
[1721277671471,0.14583,64792.0,64791.0,0.72899789]
[1721277671667,0.14583,64792.0,64791.0,0.71499789]
[1721277672065,0.14583,64792.0,64791.0,0.72899789]
[1721277672268,0.14583,64792.0,64791.0,0.58683215]
[1721277672544,0.14583,64792.0,64791.0,0.71500315]
[1721277672732,0.14583,64792.0,64791.0,0.72900315]
[1721277674188,0.14583,64792.0,64791.0,1.50075289]
[1721277675628,0.14583,64792.0,64791.0,1.50074569]
[1721277676006,0.14583,64792.0,64791.0,1.37258189]
[1721277676265,0.14583,64792.0,64791.0,1.50074587]
[1721277676667,0.14583,64792.0,64791.0,1.50074601]
[1721277679019,0.14583,64792.0,64791.0,1.50074558]
[1721277679579,0.14583,64792.0,64791.0,1.50074629]
[1721277681352,0.00083,64792.0,64791.0,1.50074629]
[1721277681554,0.00083,64792.0,64791.0,1.54699158]
[1721277682036,0.00083,64792.0,64791.0,1.50074629]
[1721277682239,0.00083,64792.0,64791.0,1.54698408]
[1721277682443,0.00083,64792.0,64791.0,1.50073792]
[1721277683786,0.00083,64792.0,64791.0,1.52373792]
[1721277685496,0.00083,64792.0,64791.0,1.52374068]
[1721277685719,0.00083,64792.0,64791.0,1.57374068]
[1721277685959,0.00083,64792.0,64791.0,1.39558189]
[1721277686161,0.00083,64792.0,64791.0,1.52374033]
[1721277687115,0.00083,64792.0,64791.0,1.57000253]
[1721277689094,0.00083,64792.0,64791.0,1.57001296]
[1721277689231,0.00083,64792.0,64791.0,1.57001775]
[1721277689663,0.00083,64792.0,64791.0,1.52374044]
[1721277690021,0.00083,64792.0,64791.0,1.57001775]
[1721277690223,0.00083,64792.0,64791.0,1.52374044]
[1721277691791,0.00083,64792.0,64791.0,1.93536355]
[1721277692000,0.00083,64792.0,64791.0,1.52374044]
[1721277692186,0.00083,64792.0,64791.0,1.39558189]
[1721277692385,0.00083,64792.0,64791.0,1.52374009]
[1721277692919,0.00083,64792.0,64791.0,1.59314887]
[1721277693256,0.00083,64792.0,64791.0,1.52374009]
[1721277693453,0.00083,64792.0,64791.0,1.59314887]
[1721277694054,0.00083,64792.0,64791.0,1.52374009]
[1721277694886,0.00083,64792.0,64791.0,1.57002573]
[1721277695349,0.00083,64792.0,64791.0,1.52374009]
[1721277695552,0.00083,64792.0,64791.0,1.57002674]
[1721277695769,0.00083,64792.0,64791.0,1.57002727]
[1721277695990,0.00083,64792.0,64791.0,1.57002872]
[1721277696195,0.00083,64792.0,64791.0,1.5237433]
[1721277696606,0.00083,64792.0,64791.0,1.52374544]
[1721277698859,0.00083,64792.0,64791.0,1.52374533]
[1721277700047,0.07943,64792.0,64791.0,1.52374533]
[1721277702264,0.07943,64792.0,64791.0,1.65190852]
[1721277703561,0.07943,64792.0,64791.0,1.69819692]
[1721277705495,0.07943,64792.0,64791.0,1.69819655]
[1721277705899,0.07943,64792.0,64791.0,1.52374544]
[1721277706101,0.07943,64792.0,64791.0,1.65190738]
[1721277707037,0.07943,64792.0,64791.0,1.69819653]
[1721277707252,0.07943,64792.0,64791.0,1.65190738]
[1721277707867,0.07943,64792.0,64791.0,1.69819653]
[1721277708592,0.07943,64792.0,64791.0,1.65190738]
[1721277708789,0.07943,64792.0,64791.0,1.6519085]
[1721277709067,0.07943,64792.0,64791.0,1.69819912]
[1721277709930,0.07943,64792.0,64791.0,1.6519085]
[1721277710137,0.07943,64792.0,64791.0,0.75715876]
[1721277710138,0.14063,64792.0,64791.0,0.75715876]
[1721277710347,0.14063,64792.0,64791.0,1.06584276]
[1721277710348,0.21103,64792.0,64791.0,1.06584276]
[1721277710541,0.21103,64792.0,64791.0,0.44847476]
[1721277710944,0.21103,64792.0,64791.0,0.29413276]
[1721277711276,0.36537,64792.0,64791.0,0.29413276]
[1721277711499,0.36537,64792.0,64791.0,0.1659697]
[1721277712026,0.36537,64792.0,64791.0,0.1379697]
[1721277712027,0.67405,64792.0,64791.0,0.1379697]
[1721277712158,0.0809,64788.0,64786.0,1.276]
[1721277712367,0.145,64787.0,64786.0,1.276]
[1721277713271,0.145,64787.0,64786.0,1.29]
[1721277713674,0.145,64787.0,64786.0,1.276]
[1721277713900,0.2154,64787.0,64786.0,1.276]
[1721277714947,0.0814,64786.0,64784.0,0.154357]
[1721277715162,0.1431,64785.0,64784.0,0.154357]
[1721277716161,0.1431,64785.0,64784.0,0.168357]
[1721277716877,0.1431,64785.0,64784.0,0.182357]
[1721277719856,0.1431,64785.0,64784.0,0.19088861]
[1721277720979,0.606169,64785.0,64784.0,0.03653161]
[1721277721322,0.606169,64785.0,64784.0,0.028]
[1721277721834,0.606169,64785.0,64784.0,0.014]
[1721277722156,0.606169,64785.0,64784.0,0.023]
[1721277722604,0.1389,64781.0,64776.0,0.154378]
[1721277722871,0.224777,64777.0,64771.0,0.154388]
[1721277723043,0.363682,64774.0,64768.0,0.154395]
[1721277724230,0.363682,64774.0,64764.0,0.308808]
[1721277724231,0.2093,64774.0,64773.0,0.006913]
[1721277724824,0.2093,64774.0,64773.0,0.013913]
[1721277725432,0.2093,64774.0,64773.0,0.020913]
[1721277725794,0.981212,64774.0,64773.0,0.020913]
[1721277725993,1.13559374,64774.0,64773.0,0.020913]
[1721277726208,1.44435874,64774.0,64773.0,0.020913]
[1721277726586,1.53713874,64774.0,64773.0,0.020913]
[1721277727203,1.53713874,64774.0,64773.0,0.007913]
[1721277727381,1.53713874,64774.0,64762.0,0.000913]
[1721277727382,0.913145,64763.0,64762.0,0.000913]
[1721277727545,0.983545,64763.0,64762.0,0.000913]
[1721277729051,0.984545,64763.0,64762.0,0.000913]
[1721277729387,0.983545,64763.0,64762.0,0.000913]
[1721277729749,0.985545,64763.0,64762.0,0.000913]
[1721277730748,0.988545,64763.0,64762.0,0.000913]
[1721277731114,0.985545,64763.0,64762.0,0.000913]
[1721277731560,0.987545,64763.0,64762.0,0.000913]
[1721277731776,0.917145,64763.0,64762.0,0.000913]
[1721277731913,0.987545,64763.0,64762.0,0.000913]
[1721277733132,0.987545,64763.0,64762.0,0.000913]
[1721277735351,1.58037894,64763.0,64762.0,0.000913]
[1721277735563,1.67315894,64763.0,64762.0,0.000913]
[1721277736004,1.77315894,64763.0,64762.0,0.000913]
[1721277736241,2.13197694,64763.0,64762.0,0.000913]
[1721277736449,2.13197694,64763.0,64747.0,1.276]
[1721277736450,0.920022,64748.0,64747.0,1.276]
[1721277736709,0.920022,64748.0,64736.0,0.308945]
[1721277736710,0.154452,64745.0,64737.0,1.430469]
[1721277736909,0.371152,64745.0,64737.0,1.430469]
[1721277737115,0.371152,64745.0,64738.0,0.154468]
[1721277738582,0.372152,64745.0,64744.0,0.014913]
[1721277739647,0.373152,64745.0,64744.0,0.028913]
[1721277739846,0.372152,64745.0,64744.0,0.014913]
[1721277740253,0.373152,64745.0,64744.0,0.028913]
[1721277742056,0.2187,64745.0,64744.0,0.028913]
[1721277742260,0.002,64745.0,64744.0,0.183367]
[1721277742498,0.002,64745.0,64744.0,0.19202786]
[1721277742948,0.002,64745.0,64744.0,0.80984386]
[1721277743687,0.002,64745.0,64744.0,0.77219774]
[1721277743938,0.002,64745.0,64744.0,0.78052711]
[1721277744410,0.002,64745.0,64744.0,1.24388911]
[1721277745157,0.002,64745.0,64744.0,1.76999711]
[1721277745421,0.1414,64764.0,64759.0,0.154418]
[1721277745422,0.46304871,64760.0,64759.0,0.154418]
[1721277745655,0.46304871,64760.0,64759.0,0.463255]
[1721277745885,0.1414,64764.0,64761.0,0.154413]
[1721277746392,0.0704,64762.0,64761.0,0.154413]
[1721277747621,0.003,64760.0,64759.0,0.154418]
[1721277747895,0.003,64760.0,64757.0,1.276]
[1721277748106,0.0704,64758.0,64757.0,1.276]
[1721277749501,0.0704,64761.0,64757.0,1.278]
[1721277749706,0.0704,64761.0,64758.0,0.308841]
[1721277750125,0.002,64760.0,64758.0,0.46326]
[1721277750547,0.002,64760.0,64759.0,0.154418]
[1721277750754,0.0704,64760.0,64759.0,0.154418]
[1721277752654,0.0704,64763.0,64760.0,0.154415]
[1721277752874,0.0704,64761.0,64760.0,0.154415]
[1721277754658,0.0714,64761.0,64760.0,0.160415]
[1721277755057,0.0714,64761.0,64760.0,0.162415]
[1721277755255,0.0714,64761.0,64760.0,0.160415]
[1721277755453,0.0714,64761.0,64760.0,0.166415]
[1721277755653,0.0724,64761.0,64760.0,0.166415]
[1721277759550,0.0724,64761.0,64760.0,0.012]
[1721277759711,0.226813,64761.0,64760.0,0.02031877]
[1721277760061,0.68044,64761.0,64760.0,0.02031877]
[1721277760235,0.989267,64761.0,64760.0,0.02031877]
[1721277760811,0.61004,64761.0,64760.0,0.02031877]
[1721277761397,0.68044,64761.0,64760.0,0.02031877]
[1721277762713,0.68044,64761.0,64760.0,0.012]
[1721277764242,0.61004,64761.0,64760.0,0.012]
[1721277764436,0.1468,64761.0,64760.0,0.012]
[1721277764839,0.1468,64761.0,64760.0,0.02031354]
[1721277765875,0.1468,64761.0,64760.0,0.17472954]
[1721277767139,0.002,64761.0,64760.0,0.79239354]
[1721277767375,0.002,64761.0,64760.0,1.25560728]
[1721277767629,0.002,64761.0,64760.0,1.52714255]
[1721277768401,0.002,64761.0,64760.0,1.52114255]
[1721277768402,0.001,64761.0,64760.0,1.52114255]
[1721277768650,0.002,64761.0,64760.0,1.53014255]
[1721277769367,0.001,64761.0,64760.0,1.52414255]
[1721277769615,0.001,64761.0,64760.0,1.53013999]
[1721277769875,0.001,64761.0,64760.0,1.52413999]
[1721277770113,0.001,64761.0,64760.0,1.90597199]
[1721277770343,0.001,64761.0,64760.0,1.91497199]
[1721277770573,0.00083,64762.0,64761.0,1.130894]
[1721277770819,0.00083,64762.0,64761.0,1.50020845]
[1721277771296,0.00083,64762.0,64761.0,1.50851359]
[1721277772543,0.00083,64762.0,64761.0,1.45851359]
[1721277772783,0.00083,64762.0,64761.0,1.33028088]
[1721277773022,0.00083,64762.0,64761.0,1.47249977]
[1721277773506,0.00083,64762.0,64761.0,1.4724998]
[1721277773979,0.00083,64762.0,64761.0,1.4864998]
[1721277776062,0.00083,64762.0,64761.0,1.35828088]
[1721277776262,0.00083,64762.0,64761.0,1.48649956]
[1721277777428,0.00083,64762.0,64761.0,1.53649956]
[1721277779012,0.00083,64762.0,64761.0,1.84532656]
[1721277779214,0.00083,64762.0,64761.0,1.92472656]
[1721277779425,0.00083,64762.0,64761.0,2.33355356]
[1721277780454,0.00083,64762.0,64761.0,2.31955356]
[1721277780888,0.00083,64762.0,64761.0,2.33355356]
[1721277781289,0.00083,64762.0,64761.0,2.31955356]
[1721277781694,0.00083,64762.0,64761.0,2.20533488]
[1721277781872,0.00083,64762.0,64761.0,2.33354187]
[1721277782069,0.00083,64762.0,64761.0,2.31954187]
[1721277782303,0.00083,64762.0,64761.0,2.30554108]
[1721277782503,0.00083,64762.0,64761.0,2.31954108]
[1721277782734,0.00083,64762.0,64761.0,2.33354108]
[1721277782928,0.00083,64762.0,64761.0,2.31954108]
[1721277783361,0.00083,64762.0,64761.0,2.33354108]
[1721277783688,0.00083,64762.0,64761.0,2.31954108]
[1721277783981,0.00083,64762.0,64761.0,1.96071408]
[1721277784186,0.00083,64762.0,64761.0,1.97471408]
[1721277784761,0.00083,64762.0,64761.0,1.96071408]
[1721277785102,0.00083,64762.0,64761.0,1.97471408]
[1721277785457,0.00083,64762.0,64761.0,1.96071408]
[1721277785819,0.00083,64762.0,64761.0,1.97471408]
[1721277788269,0.00083,64762.0,64761.0,1.97471604]
[1721277791576,0.00083,64762.0,64761.0,1.84650788]
[1721277791781,0.00083,64762.0,64761.0,1.97471603]
[1721277792838,0.00083,64762.0,64761.0,2.02471603]
[1721277794175,0.00083,64762.0,64761.0,1.97471603]
[1721277794801,0.00083,64762.0,64761.0,1.84650788]
[1721277794964,0.00083,64762.0,64761.0,1.97471602]
[1721277795705,0.00083,64762.0,64761.0,1.83161602]
[1721277797534,0.00083,64762.0,64761.0,1.85016465]
[1721277797736,0.00083,64762.0,64761.0,1.90016465]
[1721277797915,0.00083,64762.0,64761.0,1.85016465]
[1721277798117,0.00083,64762.0,64761.0,1.90016435]
[1721277798496,0.00083,64762.0,64761.0,2.08291668]
[1721277799101,0.00083,64762.0,64761.0,2.12847184]
[1721277801164,0.00083,64762.0,64761.0,2.20564663]
[1721277801378,0.00083,64762.0,64761.0,2.20312378]
[1721277801577,0.00083,64762.0,64761.0,2.26722717]
[1721277801948,0.00083,64762.0,64761.0,2.31339678]
[1721277802432,0.00083,64762.0,64761.0,2.38379678]
[1721277802607,0.00083,64762.0,64761.0,2.33762701]
[1721277802754,0.00083,64762.0,64761.0,2.38379796]
[1721277804164,0.00083,64762.0,64761.0,3.65979796]
[1721277804469,0.00083,64762.0,64761.0,3.96862496]
[1721277804708,0.00083,64762.0,64761.0,4.33393782]
[1721277805282,0.00083,64762.0,64761.0,4.51727604]
[1721277806516,0.00083,64762.0,64761.0,4.53419604]
[1721277806715,0.00083,64762.0,64761.0,4.4278396]
[1721277806918,0.00083,64762.0,64761.0,4.4418396]
[1721277807136,0.00083,64762.0,64761.0,4.55728515]
[1721277807374,0.00083,64762.0,64761.0,4.5713225]
[1721277808066,0.00083,64762.0,64761.0,4.24689668]
[1721277808273,0.00083,64762.0,64761.0,4.5576501]
[1721277808445,0.00083,64762.0,64761.0,4.44216738]
[1721277809260,0.00083,64762.0,64761.0,4.45616738]
[1721277811276,0.00083,64762.0,64761.0,3.73900399]
[1721277811452,0.00083,64762.0,64761.0,4.63860296]
[1721277811979,0.00083,64762.0,64761.0,4.63859901]
[1721277812334,0.00083,64762.0,64761.0,4.63859545]
[1721277813328,0.00083,64762.0,64761.0,4.77731753]
[1721277814162,0.00083,64762.0,64761.0,4.63859545]
[1721277814366,0.00083,64762.0,64761.0,4.77731753]
[1721277814652,0.00083,64762.0,64761.0,4.77746453]
[1721277815410,0.00083,64762.0,64761.0,4.63864711]
[1721277815769,0.00083,64762.0,64761.0,4.77748449]
[1721277817242,0.00083,64762.0,64761.0,4.5949958]
[1721277817475,0.00083,64762.0,64761.0,4.45615842]
[1721277817830,0.00083,64762.0,64761.0,4.45606401]
[1721277821017,0.00083,64762.0,64761.0,4.08131475]
[1721277821219,0.00083,64762.0,64761.0,4.4560766]
[1721277821642,0.00083,64762.0,64761.0,4.39203952]
[1721277821798,0.00083,64762.0,64761.0,4.45613573]
[1721277824365,0.00083,64762.0,64761.0,3.73900399]
[1721277824571,0.00083,64762.0,64761.0,4.45621672]
[1721277827672,0.00083,64762.0,64761.0,4.4561274]
[1721277830527,0.078,64773.0,64772.0,1.130712]
[1721277830702,0.078,64773.0,64772.0,1.84899823]
[1721277830901,0.078,64773.0,64772.0,1.38673666]
[1721277831108,0.078,64773.0,64772.0,1.85723309]
[1721277831465,0.078,64773.0,64772.0,1.72904274]
[1721277831587,0.078,64773.0,64772.0,1.85723343]
[1721277831789,0.078,64773.0,64772.0,1.87123343]
[1721277832633,0.078,64773.0,64772.0,1.88523343]
[1721277832842,0.078,64773.0,64772.0,1.83523343]
[1721277834057,0.078,64773.0,64772.0,3.11123343]
[1721277834366,0.0742,64773.0,64772.0,3.11123435]
[1721277835319,0.0742,64773.0,64772.0,3.3618896]
[1721277835520,0.0742,64773.0,64772.0,3.3118896]
[1721277836605,0.0742,64773.0,64772.0,3.4544303]
[1721277836930,0.0742,64773.0,64772.0,3.40738393]
[1721277837532,0.0742,64773.0,64772.0,3.52284286]
[1721277840614,0.0742,64773.0,64772.0,3.14878623]
[1721277840808,0.0742,64773.0,64772.0,3.52291969]
[1721277841505,0.0742,64773.0,64772.0,3.47291969]
[1721277842072,0.0742,64773.0,64772.0,3.29107837]
[1721277842274,0.0742,64773.0,64772.0,3.47308017]
[1721277843257,0.0742,64773.0,64772.0,3.01548352]
[1721277843459,0.0742,64773.0,64772.0,3.47355743]
[1721277844348,0.0742,64773.0,64772.0,3.35778188]
[1721277846233,0.0742,64773.0,64772.0,3.40778188]
[1721277846558,0.0742,64773.0,64772.0,3.40773487]
[1721277850036,0.0742,64773.0,64772.0,3.40730379]
[1721277850337,0.0742,64773.0,64772.0,2.69073666]
[1721277850455,0.0742,64773.0,64772.0,3.40730379]
[1721277851551,0.0742,64773.0,64772.0,3.71607879]
[1721277852334,0.0742,64773.0,64772.0,3.77881279]
[1721277852645,0.07503,64773.0,64772.0,3.77881279]
[1721277853263,0.07503,64773.0,64772.0,3.65070071]
[1721277853458,0.07503,64773.0,64772.0,3.77888779]
[1721277856444,0.07503,64773.0,64772.0,3.77882517]
[1721277859760,0.07503,64773.0,64772.0,3.4045363]
[1721277860056,0.00083,64773.0,64772.0,3.77899468]
[1721277860200,0.00083,64773.0,64772.0,3.77899632]
[1721277861039,0.00083,64773.0,64772.0,3.76499632]
[1721277861247,0.00083,64773.0,64772.0,4.07377132]
[1721277861444,0.00083,64773.0,64772.0,4.48129336]
[1721277861653,0.00083,64773.0,64772.0,4.96050157]
[1721277861913,0.0825,64783.0,64782.0,1.130544]
[1721277862084,0.0825,64783.0,64782.0,3.3710764]
[1721277862285,0.0825,64783.0,64782.0,3.37930609]
[1721277862442,0.0825,64783.0,64782.0,3.15157483]
[1721277862641,0.0825,64783.0,64782.0,3.4495256]
[1721277862862,0.0825,64783.0,64782.0,3.26734423]
[1721277863067,0.0825,64783.0,64782.0,3.46407263]
[1721277863294,0.0825,64783.0,64782.0,3.24878277]
[1721277864377,0.0825,64783.0,64782.0,3.13301337]
[1721277864584,0.0825,64783.0,64782.0,3.14701337]
[1721277865326,0.0825,64783.0,64782.0,3.16101337]
[1721277865525,0.0825,64783.0,64782.0,3.23044402]
[1721277866281,0.1476,64783.0,64782.0,2.69832739]
[1721277866500,0.1476,64783.0,64782.0,2.74461413]
[1721277867319,0.1476,64783.0,64782.0,2.69833337]
[1721277867822,0.1476,64783.0,64782.0,2.38960637]
[1721277869666,0.1476,64783.0,64782.0,2.38960699]
[1721277876197,0.1476,64783.0,64782.0,2.26142843]
[1721277876477,0.1476,64783.0,64782.0,2.38961539]